[Event "*** Titled Tuesday Blitz"]
[Site "Chess.com"]
[Date "2019.07.02"]
[Round "4"]
[White "Firouzja2003"]
[Black "AndrewMaco"]
[Result "0-1"]
[WhiteElo "2937"]
[BlackElo "2599"]
[TimeControl "180+2"]
[EndTime "13:54:05 PDT"]
[Termination "AndrewMaco won on time"]

1. e4 {[%clk 0:03:01.9]} 1... c6 {[%clk 0:02:53.8]} 2. d4 {[%clk 0:03:02.4]}
2... d5 {[%clk 0:02:55.3]} 3. e5 {[%clk 0:03:03.7]} 3... Bf5 {[%clk 0:02:54.8]}
4. Nf3 {[%clk 0:03:03.7]} 4... e6 {[%clk 0:02:55.8]} 5. Be2 {[%clk 0:03:05.4]}
5... Ne7 {[%clk 0:02:57.4]} 6. O-O {[%clk 0:03:06.9]} 6... c5 {[%clk 0:02:58.8]}
7. Be3 {[%clk 0:03:06.7]} 7... Nec6 {[%clk 0:02:58.2]} 8. dxc5 {[%clk
0:02:56.5]} 8... Nd7 {[%clk 0:02:58]} 9. c4 {[%clk 0:02:53.7]} 9... dxc4 {[%clk
0:02:57.4]} 10. Nbd2 {[%clk 0:02:54.6]} 10... Bxc5 {[%clk 0:02:53.6]} 11. Nxc4
{[%clk 0:02:54.4]} 11... O-O {[%clk 0:02:48.8]} 12. Bxc5 {[%clk 0:02:43.3]}
12... Nxc5 {[%clk 0:02:49.7]} 13. Rc1 {[%clk 0:02:44.2]} 13... Nd3 {[%clk
0:02:45.9]} 14. Rc3 {[%clk 0:02:41.2]} 14... Nf4 {[%clk 0:02:37.2]} 15. Nd6
{[%clk 0:02:42.1]} 15... Bg4 {[%clk 0:01:25.8]} 16. Re1 {[%clk 0:01:54.6]} 16...
Nxe5 {[%clk 0:01:17]} 17. Nxb7 {[%clk 0:01:33.9]} 17... Nxe2+ {[%clk 0:00:33.8]}
18. Qxe2 {[%clk 0:01:35.8]} 18... Bxf3 {[%clk 0:00:35]} 19. gxf3 {[%clk
0:01:32.4]} 19... Qg5+ {[%clk 0:00:33.6]} 20. Kh1 {[%clk 0:01:25.1]} 20... Ng6
{[%clk 0:00:34.9]} 21. Rg1 {[%clk 0:01:20.5]} 21... Qh5 {[%clk 0:00:35.5]} 22.
Nc5 {[%clk 0:01:15.2]} 22... Rad8 {[%clk 0:00:29]} 23. Qe3 {[%clk 0:01:03.4]}
23... h6 {[%clk 0:00:27.6]} 24. Ne4 {[%clk 0:01:04.1]} 24... Rd7 {[%clk
0:00:26.8]} 25. Rc5 {[%clk 0:01:00.2]} 25... Qh3 {[%clk 0:00:21.8]} 26. f4
{[%clk 0:00:42.3]} 26... Qxe3 {[%clk 0:00:19]} 27. fxe3 {[%clk 0:00:44.2]} 27...
Rd3 {[%clk 0:00:20.1]} 28. Re1 {[%clk 0:00:36.1]} 28... Rfd8 {[%clk 0:00:20.9]}
29. Rc2 {[%clk 0:00:20.4]} 29... Nh4 {[%clk 0:00:21.3]} 30. h3 {[%clk
0:00:08.3]} 30... Nf3 {[%clk 0:00:21.8]} 31. Rf1 {[%clk 0:00:05.3]} 31... Rxe3
{[%clk 0:00:22.6]} 32. Nc3 {[%clk 0:00:03.8]} 32... Nd4 {[%clk 0:00:22.5]} 33.
Rh2 {[%clk 0:00:04]} 33... Nf5 {[%clk 0:00:22.3]} 34. Kg1 {[%clk 0:00:05.4]}
34... Rg3+ {[%clk 0:00:22.1]} 35. Kh1 {[%clk 0:00:05.9]} 35... a6 {[%clk
0:00:21.4]} 36. Re1 {[%clk 0:00:06.9]} 36... Rdd3 {[%clk 0:00:19.7]} 37. Ne4
{[%clk 0:00:06.4]} 37... Rxh3 {[%clk 0:00:20.3]} 38. Rxh3 {[%clk 0:00:07]} 38...
Rxh3+ {[%clk 0:00:22.2]} 39. Kg2 {[%clk 0:00:08.9]} 39... Rd3 {[%clk 0:00:23.4]}
40. Kf2 {[%clk 0:00:09.1]} 40... Rd4 {[%clk 0:00:24.4]} 41. Kf3 {[%clk
0:00:04.8]} 41... a5 {[%clk 0:00:25.4]} 42. Rc1 {[%clk 0:00:04.9]} 42... Rd3+
{[%clk 0:00:26.8]} 43. Kf2 {[%clk 0:00:05.9]} 43... Rh3 {[%clk 0:00:26.9]} 44.
Rc8+ {[%clk 0:00:04.5]} 44... Kh7 {[%clk 0:00:28.2]} 45. Kg2 {[%clk 0:00:05.7]}
45... Re3 {[%clk 0:00:29.2]} 46. Nc3 {[%clk 0:00:06.9]} 46... h5 {[%clk
0:00:28.1]} 47. Rc5 {[%clk 0:00:07.3]} 47... h4 {[%clk 0:00:28.8]} 48. Rxa5
{[%clk 0:00:08.4]} 48... h3+ {[%clk 0:00:28]} 49. Kh2 {[%clk 0:00:09.7]} 49...
Kg6 {[%clk 0:00:28.1]} 50. Re5 {[%clk 0:00:08.9]} 50... Rd3 {[%clk 0:00:27.2]}
51. a4 {[%clk 0:00:05.6]} 51... Kh5 {[%clk 0:00:28]} 52. a5 {[%clk 0:00:05.2]}
52... Kg4 {[%clk 0:00:28.8]} 53. Re2 {[%clk 0:00:02.8]} 53... Nh4 {[%clk
0:00:29.4]} 54. a6 {[%clk 0:00:02.5]} 54... Nf3+ {[%clk 0:00:30.7]} 55. Kh1
{[%clk 0:00:04]} 55... Rd6 {[%clk 0:00:31.9]} 56. a7 {[%clk 0:00:03.1]} 56...
Ra6 {[%clk 0:00:32.9]} 57. Nd1 {[%clk 0:00:03.9]} 57... Rxa7 {[%clk 0:00:29.7]}
58. Nf2+ {[%clk 0:00:04.5]} 58... Kh4 {[%clk 0:00:31.1]} 0-1

[Event "*** Titled Tuesday Blitz"]
[Site "Chess.com"]
[Date "2019.07.02"]
[Round "4"]
[White "volcanoexplorer"]
[Black "benhal"]
[Result "0-1"]
[WhiteElo "2528"]
[BlackElo "2395"]
[TimeControl "180+2"]
[EndTime "13:54:11 PDT"]
[Termination "benhal won by resignation"]

1. e4 {[%clk 0:03:01.9]} 1... c5 {[%clk 0:02:44.6]} 2. Nf3 {[%clk 0:03:03.1]}
2... e6 {[%clk 0:02:42.6]} 3. d4 {[%clk 0:03:04.4]} 3... cxd4 {[%clk 0:02:43.7]}
4. Nxd4 {[%clk 0:03:06.3]} 4... Nc6 {[%clk 0:02:45]} 5. Nc3 {[%clk 0:03:04.5]}
5... Qc7 {[%clk 0:02:45.7]} 6. Be3 {[%clk 0:03:01.4]} 6... a6 {[%clk 0:02:45.6]}
7. Be2 {[%clk 0:03:02]} 7... b5 {[%clk 0:02:44.8]} 8. O-O {[%clk 0:03:00.8]}
8... Bb7 {[%clk 0:02:45.8]} 9. Nxc6 {[%clk 0:02:58.8]} 9... Bxc6 {[%clk
0:02:41.9]} 10. a3 {[%clk 0:02:52.5]} 10... Qb7 {[%clk 0:02:37.7]} 11. Bf3
{[%clk 0:02:36.4]} 11... Ne7 {[%clk 0:02:27.3]} 12. Bc5 {[%clk 0:02:23.2]} 12...
Rc8 {[%clk 0:02:22.7]} 13. Re1 {[%clk 0:01:52.1]} 13... f5 {[%clk 0:01:59.7]}
14. b4 {[%clk 0:01:41.8]} 14... fxe4 {[%clk 0:01:54.2]} 15. Bxe4 {[%clk
0:01:21.8]} 15... Bxe4 {[%clk 0:01:32]} 16. Nxe4 {[%clk 0:01:23.7]} 16... Nf5
{[%clk 0:01:33]} 17. g4 {[%clk 0:00:46]} 17... Nh4 {[%clk 0:01:30.7]} 18. Bxf8
{[%clk 0:00:42.6]} 18... Kxf8 {[%clk 0:01:30.4]} 19. Qd6+ {[%clk 0:00:42.8]}
19... Kg8 {[%clk 0:01:12.4]} 20. Qg3 {[%clk 0:00:41.3]} 20... Ng6 {[%clk
0:01:07.3]} 21. Nd6 {[%clk 0:00:42]} 21... Qc7 {[%clk 0:00:49]} 22. Nxc8 {[%clk
0:00:42.6]} 22... Qxc8 {[%clk 0:00:50.9]} 23. h4 {[%clk 0:00:41.1]} 23... h5
{[%clk 0:00:51.7]} 24. g5 {[%clk 0:00:16]} 24... Ne7 {[%clk 0:00:51.5]} 25. Rad1
{[%clk 0:00:14.9]} 25... Nf5 {[%clk 0:00:52.5]} 26. Qf4 {[%clk 0:00:15.6]} 26...
Kh7 {[%clk 0:00:52.7]} 27. g6+ {[%clk 0:00:13]} 27... Kxg6 {[%clk 0:00:53]} 28.
Qg5+ {[%clk 0:00:13.8]} 28... Kf7 {[%clk 0:00:54.5]} 29. Rd3 {[%clk 0:00:08.3]}
29... g6 {[%clk 0:00:47]} 30. Red1 {[%clk 0:00:07.9]} 30... d5 {[%clk 0:00:48]}
31. Qf4 {[%clk 0:00:07.3]} 31... Qxc2 {[%clk 0:00:43]} 32. Qe5 {[%clk
0:00:08.2]} 32... Rc8 {[%clk 0:00:38.5]} 33. Re1 {[%clk 0:00:07.9]} 33... Rc6
{[%clk 0:00:37.5]} 34. Rf3 {[%clk 0:00:06.6]} 34... Qc4 {[%clk 0:00:35.2]} 35.
Rf4 {[%clk 0:00:06]} 35... Qc3 {[%clk 0:00:36.4]} 36. Qe2 {[%clk 0:00:04.2]}
36... Kf6 {[%clk 0:00:31.4]} 37. Rf3 {[%clk 0:00:04.7]} 37... Qd4 {[%clk
0:00:32.1]} 38. Rh3 {[%clk 0:00:04.2]} 38... Qg4+ {[%clk 0:00:28.8]} 39. Qxg4
{[%clk 0:00:03]} 39... hxg4 {[%clk 0:00:30.7]} 40. Rd3 {[%clk 0:00:04.2]} 40...
Nxh4 {[%clk 0:00:30.9]} 41. Red1 {[%clk 0:00:04.7]} 41... Nf3+ {[%clk
0:00:31.5]} 42. Kg2 {[%clk 0:00:06.1]} 42... Rc4 {[%clk 0:00:31.2]} 43. Kg3
{[%clk 0:00:06.4]} 43... g5 {[%clk 0:00:32.1]} 44. Rh1 {[%clk 0:00:07.7]} 44...
Ne5 {[%clk 0:00:32.2]} 45. Rd2 {[%clk 0:00:07.7]} 45... Rc3+ {[%clk 0:00:33.2]}
46. Kg2 {[%clk 0:00:09.2]} 46... Nf3 {[%clk 0:00:34.1]} 47. Re2 {[%clk
0:00:03.9]} 47... Nh4+ {[%clk 0:00:35.1]} 48. Kf1 {[%clk 0:00:05.1]} 48... Rxa3
{[%clk 0:00:34.3]} 49. Rg1 {[%clk 0:00:05.7]} 49... Kf5 {[%clk 0:00:33.4]} 50.
Rg3 {[%clk 0:00:04.4]} 50... Nf3 {[%clk 0:00:34.5]} 51. Kg2 {[%clk 0:00:04.3]}
51... Ra1 {[%clk 0:00:35]} 52. Rxf3+ {[%clk 0:00:05.3]} 52... gxf3+ {[%clk
0:00:36.2]} 53. Kxf3 {[%clk 0:00:07.2]} 53... Ra3+ {[%clk 0:00:37]} 54. Kg2
{[%clk 0:00:08.8]} 54... Rb3 {[%clk 0:00:38.1]} 55. Ra2 {[%clk 0:00:10.4]} 55...
Rxb4 {[%clk 0:00:39.3]} 56. Rxa6 {[%clk 0:00:12.3]} 56... g4 {[%clk 0:00:40.3]}
57. Ra8 {[%clk 0:00:13.4]} 57... Rf4 {[%clk 0:00:37.8]} 58. Rf8+ {[%clk
0:00:14.7]} 58... Ke5 {[%clk 0:00:38.7]} 59. Re8 {[%clk 0:00:16.4]} 59... b4
{[%clk 0:00:39.8]} 60. Rb8 {[%clk 0:00:17.7]} 60... Kd6 {[%clk 0:00:40]} 61. Kg3
{[%clk 0:00:18.7]} 61... Re4 {[%clk 0:00:40.3]} 62. Rb6+ {[%clk 0:00:18.7]}
62... Kc5 {[%clk 0:00:40.8]} 63. Rb8 {[%clk 0:00:20.4]} 63... Kc4 {[%clk
0:00:41.7]} 64. Rc8+ {[%clk 0:00:21.3]} 64... Kd3 {[%clk 0:00:42.9]} 65. Rb8
{[%clk 0:00:22.5]} 65... Kc2 {[%clk 0:00:43.7]} 66. Rc8+ {[%clk 0:00:24]} 66...
Kb2 {[%clk 0:00:44.1]} 67. Rb8 {[%clk 0:00:25.2]} 67... b3 {[%clk 0:00:45.2]}
68. f3 {[%clk 0:00:27.1]} 68... gxf3 {[%clk 0:00:45.4]} 69. Kxf3 {[%clk
0:00:29]} 69... Kc2 {[%clk 0:00:46.5]} 70. Rc8+ {[%clk 0:00:30]} 70... Rc4
{[%clk 0:00:45.7]} 71. Rb8 {[%clk 0:00:31.7]} 71... b2 {[%clk 0:00:46.9]} 0-1

[Event "*** Titled Tuesday Blitz"]
[Site "Chess.com"]
[Date "2019.07.02"]
[Round "4"]
[White "SergeiAza"]
[Black "VladDobrov"]
[Result "1/2-1/2"]
[WhiteElo "2832"]
[BlackElo "2844"]
[TimeControl "180+2"]
[EndTime "13:54:13 PDT"]
[Termination "Game drawn - insufficient material"]

1. e4 {[%clk 0:03:01.9]} 1... c5 {[%clk 0:03:01.1]} 2. Nf3 {[%clk 0:03:01]} 2...
Nc6 {[%clk 0:03:02.6]} 3. d4 {[%clk 0:03:02]} 3... cxd4 {[%clk 0:03:04.5]} 4.
Nxd4 {[%clk 0:03:03.3]} 4... Qb6 {[%clk 0:03:06.4]} 5. Nb3 {[%clk 0:03:03.1]}
5... Nf6 {[%clk 0:03:07.9]} 6. Nc3 {[%clk 0:03:03.7]} 6... e6 {[%clk 0:03:09.4]}
7. Bd3 {[%clk 0:03:03.3]} 7... a6 {[%clk 0:03:09.1]} 8. Be3 {[%clk 0:03:04]}
8... Qc7 {[%clk 0:03:10.1]} 9. f4 {[%clk 0:03:05]} 9... h5 {[%clk 0:03:10.7]}
10. Qf3 {[%clk 0:02:59.2]} 10... d6 {[%clk 0:03:11.7]} 11. O-O-O {[%clk
0:02:56.3]} 11... b5 {[%clk 0:03:12.8]} 12. Kb1 {[%clk 0:02:40.4]} 12... Bb7
{[%clk 0:03:13.5]} 13. f5 {[%clk 0:02:41.2]} 13... Ne5 {[%clk 0:02:49]} 14. Qh3
{[%clk 0:02:41.1]} 14... exf5 {[%clk 0:02:46.2]} 15. Qxf5 {[%clk 0:02:31.6]}
15... Be7 {[%clk 0:02:43.9]} 16. Nd4 {[%clk 0:02:24]} 16... g6 {[%clk 0:02:37]}
17. Qf4 {[%clk 0:02:17]} 17... Rc8 {[%clk 0:02:08.3]} 18. a3 {[%clk 0:02:02.4]}
18... Qb8 {[%clk 0:02:01.3]} 19. Bd2 {[%clk 0:01:45.8]} 19... d5 {[%clk
0:01:30.8]} 20. Nxd5 {[%clk 0:00:44.6]} 20... Nxd5 {[%clk 0:01:31.1]} 21. exd5
{[%clk 0:00:45.7]} 21... Nxd3 {[%clk 0:01:32.5]} 22. Qxb8 {[%clk 0:00:41.3]}
22... Rxb8 {[%clk 0:01:33.4]} 23. cxd3 {[%clk 0:00:42.9]} 23... Bxd5 {[%clk
0:01:34.6]} 24. Rhe1 {[%clk 0:00:43.3]} 24... Kd7 {[%clk 0:01:33.4]} 25. Nf3
{[%clk 0:00:33.8]} 25... Bxf3 {[%clk 0:00:47.6]} 26. gxf3 {[%clk 0:00:34.7]}
26... Bd6 {[%clk 0:00:49]} 27. h3 {[%clk 0:00:34.3]} 27... Rhe8 {[%clk
0:00:49.3]} 28. Re4 {[%clk 0:00:35.3]} 28... f5 {[%clk 0:00:50.3]} 29. Rd4
{[%clk 0:00:36.4]} 29... Re6 {[%clk 0:00:45.7]} 30. Bb4 {[%clk 0:00:36.1]} 30...
Rb6 {[%clk 0:00:42.2]} 31. Rg1 {[%clk 0:00:26.9]} 31... Ke7 {[%clk 0:00:39.3]}
32. Rc1 {[%clk 0:00:22.7]} 32... Bxb4 {[%clk 0:00:38.5]} 33. axb4 {[%clk
0:00:23.3]} 33... Kf6 {[%clk 0:00:35.1]} 34. h4 {[%clk 0:00:21.3]} 34... Rbd6
{[%clk 0:00:33.5]} 35. Rxd6 {[%clk 0:00:21.2]} 35... Rxd6 {[%clk 0:00:35.4]} 36.
f4 {[%clk 0:00:18.5]} 36... Ke7 {[%clk 0:00:29.6]} 37. Rc7+ {[%clk 0:00:18.3]}
37... Kf8 {[%clk 0:00:23.9]} 38. Ra7 {[%clk 0:00:18.6]} 38... Rd4 {[%clk
0:00:23.6]} 39. Kc2 {[%clk 0:00:19.6]} 39... Rxb4 {[%clk 0:00:21]} 40. Rxa6
{[%clk 0:00:20.7]} 40... Kg7 {[%clk 0:00:22.2]} 41. Rb6 {[%clk 0:00:19.3]} 41...
Rxf4 {[%clk 0:00:22.7]} 42. Rxb5 {[%clk 0:00:20.5]} 42... Rxh4 {[%clk
0:00:23.7]} 43. b4 {[%clk 0:00:21.5]} 43... Rg4 {[%clk 0:00:20.1]} 44. Rb7+
{[%clk 0:00:22.2]} 44... Kf6 {[%clk 0:00:21]} 45. b5 {[%clk 0:00:23.8]} 45...
Ke6 {[%clk 0:00:21.5]} 46. Rh7 {[%clk 0:00:23.8]} 46... Kd6 {[%clk 0:00:22.7]}
47. b6 {[%clk 0:00:24.7]} 47... Rb4 {[%clk 0:00:20.3]} 48. b7 {[%clk 0:00:24.8]}
48... Kc6 {[%clk 0:00:21.3]} 49. Rg7 {[%clk 0:00:25.6]} 49... Rxb7 {[%clk
0:00:22.4]} 50. Rxg6+ {[%clk 0:00:26.8]} 50... Kd5 {[%clk 0:00:24.1]} 51. Rg5
{[%clk 0:00:28.3]} 51... Ke5 {[%clk 0:00:25.2]} 52. Rxh5 {[%clk 0:00:29.2]}
52... Kf4 {[%clk 0:00:25.7]} 53. Kc3 {[%clk 0:00:27.2]} 53... Rc7+ {[%clk
0:00:26.1]} 54. Kd4 {[%clk 0:00:26.5]} 54... Rd7+ {[%clk 0:00:27.4]} 55. Kc4
{[%clk 0:00:28.2]} 55... Kg4 {[%clk 0:00:28.9]} 56. Rh8 {[%clk 0:00:28.8]} 56...
f4 {[%clk 0:00:30.1]} 57. Rg8+ {[%clk 0:00:29.9]} 57... Kf3 {[%clk 0:00:29.5]}
58. d4 {[%clk 0:00:29.5]} 58... Rf7 {[%clk 0:00:30.4]} 59. d5 {[%clk 0:00:29.9]}
59... Ke2 {[%clk 0:00:30.5]} 60. Re8+ {[%clk 0:00:29.6]} 60... Kd2 {[%clk
0:00:31.3]} 61. d6 {[%clk 0:00:27.3]} 61... f3 {[%clk 0:00:32.1]} 62. Ra8 {[%clk
0:00:28.5]} 62... f2 {[%clk 0:00:32.6]} 63. Ra1 {[%clk 0:00:28.9]} 63... Ke2
{[%clk 0:00:29.9]} 64. Kd5 {[%clk 0:00:26.9]} 64... Rg7 {[%clk 0:00:31]} 65.
Ra2+ {[%clk 0:00:26.8]} 65... Ke3 {[%clk 0:00:31.7]} 66. Rxf2 {[%clk 0:00:27.9]}
66... Kxf2 {[%clk 0:00:33.6]} 67. Kc6 {[%clk 0:00:28.9]} 67... Ke3 {[%clk
0:00:33.4]} 68. d7 {[%clk 0:00:30]} 68... Rxd7 {[%clk 0:00:34.6]} 69. Kxd7
{[%clk 0:00:30.7]} 1/2-1/2

[Event "*** Titled Tuesday Blitz"]
[Site "Chess.com"]
[Date "2019.07.02"]
[Round "4"]
[White "johnathan113"]
[Black "sergeikim"]
[Result "1/2-1/2"]
[WhiteElo "2682"]
[BlackElo "2486"]
[TimeControl "180+2"]
[EndTime "13:54:13 PDT"]
[Termination "Game drawn by agreement"]

1. e4 {[%clk 0:03:01.9]} 1... e5 {[%clk 0:03:00.6]} 2. Nf3 {[%clk 0:03:02.7]}
2... Nc6 {[%clk 0:03:01.4]} 3. d4 {[%clk 0:03:04.3]} 3... exd4 {[%clk
0:03:01.7]} 4. Nxd4 {[%clk 0:03:05.6]} 4... Bc5 {[%clk 0:03:02.3]} 5. Be3 {[%clk
0:03:05.7]} 5... Qf6 {[%clk 0:03:02.8]} 6. c3 {[%clk 0:03:05.6]} 6... Nge7
{[%clk 0:03:03]} 7. Bc4 {[%clk 0:03:06.8]} 7... d6 {[%clk 0:03:01.5]} 8. O-O
{[%clk 0:03:07.6]} 8... a6 {[%clk 0:03:01.4]} 9. b4 {[%clk 0:02:27.6]} 9... Ba7
{[%clk 0:03:00.1]} 10. Na3 {[%clk 0:02:27]} 10... Ne5 {[%clk 0:02:58.6]} 11. Be2
{[%clk 0:02:27.6]} 11... h5 {[%clk 0:02:58.1]} 12. h3 {[%clk 0:02:23.9]} 12...
Qg6 {[%clk 0:02:58.8]} 13. f4 {[%clk 0:02:19.7]} 13... Bxh3 {[%clk 0:02:55.5]}
14. Rf2 {[%clk 0:02:12]} 14... Ng4 {[%clk 0:02:55.4]} 15. Bxg4 {[%clk 0:01:55]}
15... Bxg4 {[%clk 0:02:53.7]} 16. f5 {[%clk 0:01:54.4]} 16... Qf6 {[%clk
0:02:48.6]} 17. Qd2 {[%clk 0:01:49.6]} 17... Nc6 {[%clk 0:02:30.9]} 18. Bg5
{[%clk 0:01:35.4]} 18... Bxd4 {[%clk 0:02:01.3]} 19. Bxf6 {[%clk 0:01:34.4]}
19... Bxf6 {[%clk 0:02:02.2]} 20. Nc4 {[%clk 0:01:26.8]} 20... O-O {[%clk
0:01:53.1]} 21. Ne3 {[%clk 0:01:23.2]} 21... Bg5 {[%clk 0:01:42.8]} 22. Qe1
{[%clk 0:01:22.7]} 22... Bxe3 {[%clk 0:01:38.6]} 23. Qxe3 {[%clk 0:01:24.6]}
23... f6 {[%clk 0:01:33.9]} 24. c4 {[%clk 0:01:19.7]} 24... Rfe8 {[%clk
0:01:33.6]} 25. c5 {[%clk 0:01:19.6]} 25... d5 {[%clk 0:01:23.3]} 26. Qb3 {[%clk
0:01:18.1]} 26... Rad8 {[%clk 0:01:23.9]} 27. exd5 {[%clk 0:01:18.2]} 27... Nd4
{[%clk 0:01:21.4]} 28. Qc4 {[%clk 0:01:18.6]} 28... Re4 {[%clk 0:01:00]} 29. d6+
{[%clk 0:01:19.7]} 29... Kh7 {[%clk 0:01:01.3]} 30. dxc7 {[%clk 0:01:21.1]}
30... Rc8 {[%clk 0:01:02.5]} 31. Qd5 {[%clk 0:01:16.2]} 31... Ne2+ {[%clk
0:01:01.2]} 32. Kh2 {[%clk 0:00:31.3]} 32... Re7 {[%clk 0:00:58.8]} 33. Re1
{[%clk 0:00:30.1]} 33... Rcxc7 {[%clk 0:00:55.9]} 34. Qd2 {[%clk 0:00:28.3]}
34... Red7 {[%clk 0:00:40.7]} 35. Rfxe2 {[%clk 0:00:21.2]} 35... Rxd2 {[%clk
0:00:40.2]} 36. Rxd2 {[%clk 0:00:23.1]} 36... Bxf5 {[%clk 0:00:41.3]} 37. Rde2
{[%clk 0:00:23.2]} 37... Rd7 {[%clk 0:00:24.5]} 38. Re7 {[%clk 0:00:23.7]} 38...
Rd2 {[%clk 0:00:24.3]} 39. Rxb7 {[%clk 0:00:24.4]} 39... Rxa2 {[%clk 0:00:24.1]}
40. Ree7 {[%clk 0:00:25.2]} 40... h4 {[%clk 0:00:21.2]} 41. Rxg7+ {[%clk
0:00:25.7]} 41... Kh6 {[%clk 0:00:22.5]} 42. Rgf7 {[%clk 0:00:23.1]} 42... Kg5
{[%clk 0:00:23]} 43. Rg7+ {[%clk 0:00:21.5]} 43... Kf4 {[%clk 0:00:23.8]} 44. c6
{[%clk 0:00:18.1]} 44... Rc2 {[%clk 0:00:20.6]} 45. c7 {[%clk 0:00:18.2]} 45...
h3 {[%clk 0:00:19.6]} 46. Kg1 {[%clk 0:00:16.2]} 46... hxg2 {[%clk 0:00:18.9]}
47. Rb6 {[%clk 0:00:12.4]} 47... Be4 {[%clk 0:00:14.9]} 48. Kh2 {[%clk
0:00:08.4]} 48... Rc1 {[%clk 0:00:11.5]} 49. Rxg2 {[%clk 0:00:03.6]} 49... Bxg2
{[%clk 0:00:11.3]} 50. Kxg2 {[%clk 0:00:05.5]} 50... Rxc7 {[%clk 0:00:11.7]} 51.
Rxf6+ {[%clk 0:00:06.6]} 51... Ke5 {[%clk 0:00:12.8]} 52. Rxa6 {[%clk
0:00:08.5]} 52... Kd4 {[%clk 0:00:12.8]} 53. Kf3 {[%clk 0:00:09.8]} 53... Rb7
{[%clk 0:00:13.7]} 54. b5 {[%clk 0:00:08.5]} 54... Rxb5 {[%clk 0:00:13.5]} 55.
Kf4 {[%clk 0:00:08.1]} 55... Kc4 {[%clk 0:00:13.1]} 1/2-1/2

[Event "*** Titled Tuesday Blitz"]
[Site "Chess.com"]
[Date "2019.07.02"]
[Round "4"]
[White "colegiodemadrid"]
[Black "Zq1"]
[Result "0-1"]
[WhiteElo "2442"]
[BlackElo "2559"]
[TimeControl "180+2"]
[EndTime "13:54:21 PDT"]
[Termination "Zq1 won by resignation"]

1. e4 {[%clk 0:03:01.9]} 1... c5 {[%clk 0:03:00.4]} 2. Nf3 {[%clk 0:03:01.6]}
2... d6 {[%clk 0:03:01.5]} 3. d4 {[%clk 0:03:03]} 3... cxd4 {[%clk 0:03:02.5]}
4. Nxd4 {[%clk 0:03:04.5]} 4... Nf6 {[%clk 0:03:03.3]} 5. Nc3 {[%clk 0:03:06.1]}
5... Nc6 {[%clk 0:03:04.5]} 6. Bg5 {[%clk 0:03:03.2]} 6... g6 {[%clk 0:03:05.5]}
7. Bxf6 {[%clk 0:02:48.7]} 7... exf6 {[%clk 0:03:04.5]} 8. Qd2 {[%clk
0:02:49.6]} 8... Bg7 {[%clk 0:03:05.2]} 9. Ndb5 {[%clk 0:02:39.5]} 9... O-O
{[%clk 0:03:05.8]} 10. Be2 {[%clk 0:02:38.1]} 10... f5 {[%clk 0:03:04.3]} 11.
O-O {[%clk 0:02:31.4]} 11... fxe4 {[%clk 0:03:04.8]} 12. Nxe4 {[%clk 0:02:32.9]}
12... Bxb2 {[%clk 0:03:00.1]} 13. Rab1 {[%clk 0:02:30.1]} 13... Bg7 {[%clk
0:02:54.4]} 14. Nbxd6 {[%clk 0:02:27.8]} 14... Nd4 {[%clk 0:02:50.2]} 15. c3
{[%clk 0:02:19.4]} 15... Nxe2+ {[%clk 0:02:50.1]} 16. Qxe2 {[%clk 0:02:21]}
16... b6 {[%clk 0:02:40.8]} 17. Rfd1 {[%clk 0:02:20.3]} 17... Qe7 {[%clk
0:02:35]} 18. Nxc8 {[%clk 0:02:06.8]} 18... Raxc8 {[%clk 0:02:34.8]} 19. Rd3
{[%clk 0:02:07.8]} 19... f5 {[%clk 0:02:14.7]} 20. Ng3 {[%clk 0:02:06.4]} 20...
Qxe2 {[%clk 0:02:12.7]} 21. Nxe2 {[%clk 0:02:07.9]} 21... Rfe8 {[%clk
0:02:12.4]} 22. Kf1 {[%clk 0:02:09.1]} 22... Re7 {[%clk 0:02:10.1]} 23. h3
{[%clk 0:02:03.7]} 23... Rec7 {[%clk 0:02:08.4]} 24. Rb3 {[%clk 0:02:03.3]}
24... Rc4 {[%clk 0:01:55.6]} 25. g3 {[%clk 0:01:59.8]} 25... R8c7 {[%clk
0:01:54.9]} 26. Kg2 {[%clk 0:01:57.8]} 26... Kf7 {[%clk 0:01:55]} 27. Kf3 {[%clk
0:01:58.9]} 27... g5 {[%clk 0:01:47.7]} 28. g4 {[%clk 0:01:59.9]} 28... fxg4+
{[%clk 0:01:44.4]} 29. hxg4 {[%clk 0:02:00.1]} 29... Ke6 {[%clk 0:01:33.7]} 30.
Re3+ {[%clk 0:01:54.9]} 30... Kf7 {[%clk 0:01:27]} 31. Rd3 {[%clk 0:01:54.7]}
31... Be5 {[%clk 0:01:24.2]} 32. Rd5 {[%clk 0:01:49]} 32... Ke6 {[%clk
0:01:22.4]} 33. Rd3 {[%clk 0:01:49.6]} 33... Rf7+ {[%clk 0:01:21.1]} 34. Ke3
{[%clk 0:01:43.7]} 34... Rxg4 {[%clk 0:01:19.5]} 35. Rd8 {[%clk 0:01:43.9]}
35... Bf4+ {[%clk 0:01:06.8]} 36. Kd3 {[%clk 0:01:38]} 36... Rd7+ {[%clk
0:01:04.4]} 37. Nd4+ {[%clk 0:01:32.8]} 37... Kd6 {[%clk 0:00:52.1]} 38. Re8
{[%clk 0:01:11.7]} 38... Rg1 {[%clk 0:00:36.9]} 39. Rb5 {[%clk 0:01:08.4]} 39...
Rd1+ {[%clk 0:00:35.4]} 40. Kc2 {[%clk 0:01:04.8]} 40... Rxd4 {[%clk 0:00:34.7]}
41. cxd4 {[%clk 0:01:03.2]} 41... h5 {[%clk 0:00:36]} 42. Rh8 {[%clk 0:01:00.8]}
42... h4 {[%clk 0:00:36.6]} 43. Rf5 {[%clk 0:01:01]} 43... Ke6 {[%clk
0:00:36.7]} 44. Rff8 {[%clk 0:00:58.9]} 44... Rxd4 {[%clk 0:00:37.4]} 45. f3
{[%clk 0:00:52.9]} 45... Rd2+ {[%clk 0:00:36.5]} 46. Kc3 {[%clk 0:00:54.2]}
46... Rf2 {[%clk 0:00:37.4]} 47. Kd4 {[%clk 0:00:54.4]} 47... Rd2+ {[%clk
0:00:32.8]} 48. Ke4 {[%clk 0:00:54.7]} 48... Re2+ {[%clk 0:00:33.4]} 49. Kd4
{[%clk 0:00:55.8]} 49... Rxa2 {[%clk 0:00:33.6]} 50. Re8+ {[%clk 0:00:54.6]}
50... Kd7 {[%clk 0:00:32.8]} 51. Rd8+ {[%clk 0:00:53.7]} 51... Kc6 {[%clk
0:00:33.3]} 52. Rc8+ {[%clk 0:00:52.3]} 52... Kb5 {[%clk 0:00:34.3]} 53. Ke4
{[%clk 0:00:53.3]} 53... Re2+ {[%clk 0:00:31.9]} 54. Kf5 {[%clk 0:00:53.5]}
54... Re5+ {[%clk 0:00:32.6]} 55. Kg4 {[%clk 0:00:54.4]} 55... Rc5 {[%clk
0:00:32.1]} 56. Ra8 {[%clk 0:00:50.2]} 56... a5 {[%clk 0:00:31.5]} 57. Rh6
{[%clk 0:00:48.5]} 57... Rc6 {[%clk 0:00:26.2]} 58. Rh7 {[%clk 0:00:47]} 58...
Kb4 {[%clk 0:00:23.6]} 59. Re8 {[%clk 0:00:43.4]} 59... a4 {[%clk 0:00:23.3]}
60. Re4+ {[%clk 0:00:43.3]} 60... Rc4 {[%clk 0:00:23.8]} 61. Re2 {[%clk
0:00:44.1]} 61... a3 {[%clk 0:00:24]} 62. Ra7 {[%clk 0:00:44.8]} 62... b5 {[%clk
0:00:23.9]} 63. Ra6 {[%clk 0:00:35.9]} 63... Kb3 {[%clk 0:00:24.4]} 64. Re1
{[%clk 0:00:32.2]} 64... a2 {[%clk 0:00:23.6]} 65. Ra1 {[%clk 0:00:32.9]} 65...
Ra4 {[%clk 0:00:24.3]} 66. Re6 {[%clk 0:00:29.6]} 66... Be5+ {[%clk 0:00:24.2]}
0-1